[Event "*** Titled Tuesday Blitz"]
[Site "Chess.com"]
[Date "2019.10.01"]
[Round "1"]
[White "Grieve72"]
[Black "chessdjw"]
[Result "0-1"]
[WhiteElo "2268"]
[BlackElo "2633"]
[TimeControl "180+2"]
[EndTime "13:06:11 PDT"]
[Termination "chessdjw won by resignation"]

1. d4 {[%clk 0:02:57.6]} 1... Nf6 {[%clk 0:03:00.2]} 2. Bg5 {[%clk 0:02:55.8]}
2... d5 {[%clk 0:02:59.5]} 3. Bxf6 {[%clk 0:02:52.7]} 3... gxf6 {[%clk
0:02:59.8]} 4. c4 {[%clk 0:02:52.8]} 4... e5 {[%clk 0:02:58.5]} 5. Nf3 {[%clk
0:02:49]} 5... dxc4 {[%clk 0:02:43.1]} 6. Qa4+ {[%clk 0:02:26.5]} 6... Nc6
{[%clk 0:02:39.5]} 7. dxe5 {[%clk 0:02:22.2]} 7... fxe5 {[%clk 0:02:18.8]} 8.
Nc3 {[%clk 0:02:10.9]} 8... Bb4 {[%clk 0:02:11.7]} 9. e3 {[%clk 0:01:58.9]} 9...
Be6 {[%clk 0:01:33.1]} 10. Nxe5 {[%clk 0:01:48.5]} 10... Qf6 {[%clk 0:01:26]}
11. f4 {[%clk 0:01:12.9]} 11... O-O {[%clk 0:01:16.6]} 12. Nxc6 {[%clk
0:00:57.3]} 12... Bxc3+ {[%clk 0:01:16.6]} 13. Kf2 {[%clk 0:00:52.5]} 13... Bxb2
{[%clk 0:01:13.4]} 14. Rd1 {[%clk 0:00:19.4]} 14... bxc6 {[%clk 0:01:12.9]} 15.
Qxc6 {[%clk 0:00:19.8]} 15... c3 {[%clk 0:01:07]} 16. Bd3 {[%clk 0:00:19.1]}
16... Rad8 {[%clk 0:01:02]} 17. g4 {[%clk 0:00:09.4]} 17... Qh4+ {[%clk
0:00:59.9]} 0-1

[Event "*** Titled Tuesday Blitz"]
[Site "Chess.com"]
[Date "2019.10.01"]
[Round "1"]
[White "eldur16"]
[Black "nitpicker"]
[Result "1-0"]
[WhiteElo "2628"]
[BlackElo "2269"]
[TimeControl "180+2"]
[EndTime "13:06:12 PDT"]
[Termination "eldur16 won by resignation"]

1. e4 {[%clk 0:03:01.9]} 1... c5 {[%clk 0:02:54.5]} 2. Ne2 {[%clk 0:03:02.5]}
2... Nc6 {[%clk 0:02:52.9]} 3. d4 {[%clk 0:03:02.2]} 3... cxd4 {[%clk
0:02:53.7]} 4. Nxd4 {[%clk 0:03:03.3]} 4... Nf6 {[%clk 0:02:54.2]} 5. Nc3 {[%clk
0:03:04.2]} 5... d6 {[%clk 0:02:54.8]} 6. Bg5 {[%clk 0:03:04.3]} 6... Qb6 {[%clk
0:02:53.9]} 7. Nb3 {[%clk 0:03:03.3]} 7... e6 {[%clk 0:02:53.8]} 8. Qd2 {[%clk
0:03:03.4]} 8... Be7 {[%clk 0:02:54.4]} 9. O-O-O {[%clk 0:03:03.1]} 9... O-O
{[%clk 0:02:55.1]} 10. Kb1 {[%clk 0:02:57.3]} 10... Rd8 {[%clk 0:02:54.3]} 11.
f4 {[%clk 0:02:57.2]} 11... h6 {[%clk 0:02:43.8]} 12. Bxf6 {[%clk 0:02:53.6]}
12... Bxf6 {[%clk 0:02:43.9]} 13. g4 {[%clk 0:02:52.7]} 13... Be7 {[%clk
0:02:30.3]} 14. h4 {[%clk 0:02:51.1]} 14... a6 {[%clk 0:02:09.5]} 15. g5 {[%clk
0:02:51.3]} 15... h5 {[%clk 0:02:10.8]} 16. f5 {[%clk 0:02:49.7]} 16... exf5
{[%clk 0:02:05.2]} 17. Nd5 {[%clk 0:02:47.7]} 17... Qa7 {[%clk 0:02:06.2]} 18.
e5 {[%clk 0:02:35.1]} 18... Bf8 {[%clk 0:01:53.6]} 19. Nf6+ {[%clk 0:02:20.8]}
19... Kh8 {[%clk 0:01:46.9]} 20. Qe2 {[%clk 0:02:07.5]} 20... g6 {[%clk
0:01:39.3]} 21. exd6 {[%clk 0:02:07.2]} 21... Be6 {[%clk 0:01:35.3]} 22. Bg2
{[%clk 0:02:02]} 22... Rxd6 {[%clk 0:01:31.8]} 23. Rhe1 {[%clk 0:01:30]} 23...
Rad8 {[%clk 0:01:31.1]} 24. Rxd6 {[%clk 0:01:28.9]} 24... Rxd6 {[%clk
0:01:31.3]} 25. Ne8 {[%clk 0:01:21.1]} 25... Rd7 {[%clk 0:01:22.4]} 26. Bxc6
{[%clk 0:01:20.4]} 26... bxc6 {[%clk 0:01:11.7]} 27. Qe5+ {[%clk 0:01:21]} 27...
Kg8 {[%clk 0:01:10.9]} 28. Nf6+ {[%clk 0:01:21.4]} 28... Kh8 {[%clk 0:01:11.2]}
29. Nxh5+ {[%clk 0:01:15.5]} 29... Kg8 {[%clk 0:01:07.4]} 30. Nf6+ {[%clk
0:01:16.1]} 30... Kh8 {[%clk 0:01:07.7]} 31. Nxd7+ {[%clk 0:01:16.8]} 31... Bg7
{[%clk 0:01:08]} 32. Nf6 {[%clk 0:01:14.6]} 32... Qf2 {[%clk 0:01:06.2]} 33.
Qb8+ {[%clk 0:01:11.4]} 1-0

[Event "*** Titled Tuesday Blitz"]
[Site "Chess.com"]
[Date "2019.10.01"]
[Round "1"]
[White "sandropozo"]
[Black "comsac"]
[Result "1-0"]
[WhiteElo "2617"]
[BlackElo "2255"]
[TimeControl "180+2"]
[EndTime "13:06:13 PDT"]
[Termination "sandropozo won by resignation"]

1. d4 {[%clk 0:02:59]} 1... d5 {[%clk 0:02:59.9]} 2. Nf3 {[%clk 0:02:59.3]} 2...
e6 {[%clk 0:03:01.2]} 3. c4 {[%clk 0:03:00]} 3... Nf6 {[%clk 0:03:02.3]} 4. Nc3
{[%clk 0:03:00.7]} 4... Be7 {[%clk 0:03:03.3]} 5. g3 {[%clk 0:03:02.1]} 5... O-O
{[%clk 0:03:03.5]} 6. Bg2 {[%clk 0:03:03.7]} 6... b6 {[%clk 0:03:04.9]} 7. O-O
{[%clk 0:03:02.8]} 7... Bb7 {[%clk 0:03:05.7]} 8. Ne5 {[%clk 0:03:03.6]} 8...
Na6 {[%clk 0:02:55.2]} 9. cxd5 {[%clk 0:02:52.4]} 9... Nxd5 {[%clk 0:02:51.7]}
10. Nxd5 {[%clk 0:02:47.3]} 10... Bxd5 {[%clk 0:02:53.6]} 11. Nc6 {[%clk
0:02:37]} 11... Qd7 {[%clk 0:02:33.5]} 12. Nxe7+ {[%clk 0:02:30.4]} 12... Qxe7
{[%clk 0:02:33.5]} 13. e4 {[%clk 0:02:23.3]} 13... Bb7 {[%clk 0:02:31.5]} 14.
Be3 {[%clk 0:02:23.9]} 14... c5 {[%clk 0:02:29.3]} 15. d5 {[%clk 0:01:53.1]}
15... Rad8 {[%clk 0:02:21.7]} 16. Qb3 {[%clk 0:01:37.7]} 16... exd5 {[%clk
0:01:50.3]} 17. exd5 {[%clk 0:01:38.4]} 17... Nb4 {[%clk 0:01:51.8]} 18. Rfd1
{[%clk 0:01:28]} 18... Qd7 {[%clk 0:01:09.2]} 19. Bg5 {[%clk 0:01:07.4]} 19...
f6 {[%clk 0:01:02.4]} 20. d6+ {[%clk 0:01:07.3]} 20... Kh8 {[%clk 0:01:03.4]}
21. Bf4 {[%clk 0:01:08.5]} 21... Bxg2 {[%clk 0:01:02.3]} 22. Kxg2 {[%clk
0:01:09.3]} 22... Nc6 {[%clk 0:01:02.4]} 23. Qd5 {[%clk 0:01:05]} 23... Nd4
{[%clk 0:00:58]} 24. b4 {[%clk 0:01:03.3]} 24... Qc6 {[%clk 0:00:55.4]} 25. Rxd4
{[%clk 0:01:02.9]} 25... Qxd5+ {[%clk 0:00:47.6]} 26. Rxd5 {[%clk 0:01:03.5]}
26... cxb4 {[%clk 0:00:49.2]} 27. d7 {[%clk 0:01:04.8]} 27... Rf7 {[%clk
0:00:49.9]} 28. Rad1 {[%clk 0:01:05.3]} 1-0

[Event "*** Titled Tuesday Blitz"]
[Site "Chess.com"]
[Date "2019.10.01"]
[Round "1"]
[White "mortngabriel"]
[Black "Grandmaster1369"]
[Result "0-1"]
[WhiteElo "2326"]
[BlackElo "2684"]
[TimeControl "180+2"]
[EndTime "13:06:20 PDT"]
[Termination "Grandmaster1369 won on time"]

1. d4 {[%clk 0:03:01.9]} 1... Nf6 {[%clk 0:02:59.7]} 2. Nf3 {[%clk 0:02:57.3]}
2... g6 {[%clk 0:02:59.6]} 3. c4 {[%clk 0:02:56.9]} 3... Bg7 {[%clk 0:02:59]} 4.
Nc3 {[%clk 0:02:58.8]} 4... O-O {[%clk 0:02:59.8]} 5. e4 {[%clk 0:02:59.9]} 5...
d6 {[%clk 0:03:00.8]} 6. h3 {[%clk 0:03:00]} 6... Nbd7 {[%clk 0:02:59.8]} 7. Be2
{[%clk 0:02:57.4]} 7... e5 {[%clk 0:03:00.9]} 8. d5 {[%clk 0:02:57.7]} 8... a5
{[%clk 0:03:01.7]} 9. g4 {[%clk 0:02:56.6]} 9... Nc5 {[%clk 0:03:02.1]} 10. Qc2
{[%clk 0:02:51.5]} 10... Bd7 {[%clk 0:03:00.6]} 11. Bg5 {[%clk 0:02:39.8]} 11...
c6 {[%clk 0:02:56.5]} 12. O-O-O {[%clk 0:02:29.4]} 12... Qc7 {[%clk 0:02:50.9]}
13. Kb1 {[%clk 0:02:13.9]} 13... a4 {[%clk 0:02:50.7]} 14. Nd2 {[%clk
0:01:59.4]} 14... Rfc8 {[%clk 0:02:44.2]} 15. f3 {[%clk 0:01:38]} 15... Qa5
{[%clk 0:02:33.9]} 16. Nf1 {[%clk 0:01:19.5]} 16... Ne8 {[%clk 0:02:02.8]} 17.
Bd2 {[%clk 0:01:06.7]} 17... Qc7 {[%clk 0:01:54.1]} 18. Ne3 {[%clk 0:01:03]}
18... Qb6 {[%clk 0:01:47.2]} 19. h4 {[%clk 0:00:50.1]} 19... Nb3 {[%clk
0:01:47.9]} 20. g5 {[%clk 0:00:22.5]} 20... Nd4 {[%clk 0:01:47]} 21. Qd3 {[%clk
0:00:22.2]} 21... a3 {[%clk 0:01:46.3]} 22. Bc1 {[%clk 0:00:08.9]} 22... axb2
{[%clk 0:01:46.8]} 23. Bxb2 {[%clk 0:00:10.7]} 23... Nc7 {[%clk 0:01:48.1]} 24.
Nc2 {[%clk 0:00:08.7]} 24... Na6 {[%clk 0:01:48.1]} 25. Nxd4 {[%clk 0:00:09]}
25... Nc5 {[%clk 0:01:47]} 26. Qc2 {[%clk 0:00:03.3]} 26... exd4 {[%clk
0:01:48.4]} 0-1

[Event "*** Titled Tuesday Blitz"]
[Site "Chess.com"]
[Date "2019.10.01"]
[Round "1"]
[White "alishersuleymenov"]
[Black "colegiodemadrid"]
[Result "1-0"]
[WhiteElo "2701"]
[BlackElo "2344"]
[TimeControl "180+2"]
[EndTime "13:06:26 PDT"]
[Termination "alishersuleymenov won by checkmate"]

1. d4 {[%clk 0:02:59.8]} 1... d5 {[%clk 0:03:00.2]} 2. Bf4 {[%clk 0:02:55.4]}
2... e6 {[%clk 0:02:57.5]} 3. e3 {[%clk 0:02:56.3]} 3... Bd6 {[%clk 0:02:58.8]}
4. Bg3 {[%clk 0:02:57.4]} 4... Nf6 {[%clk 0:02:59]} 5. Nd2 {[%clk 0:02:58.3]}
5... b6 {[%clk 0:03:00.4]} 6. Ngf3 {[%clk 0:02:56.5]} 6... O-O {[%clk
0:03:00.7]} 7. Bd3 {[%clk 0:02:57.5]} 7... Ba6 {[%clk 0:03:01]} 8. Bxa6 {[%clk
0:02:58.4]} 8... Nxa6 {[%clk 0:03:02]} 9. Ne5 {[%clk 0:02:51.7]} 9... c5 {[%clk
0:02:56.8]} 10. c3 {[%clk 0:02:51.8]} 10... Qc7 {[%clk 0:02:52.5]} 11. Qe2
{[%clk 0:02:43.1]} 11... Nb8 {[%clk 0:02:53.1]} 12. O-O {[%clk 0:02:42.2]} 12...
Nfd7 {[%clk 0:02:45.2]} 13. f4 {[%clk 0:02:30.7]} 13... f6 {[%clk 0:02:37.4]}
14. Nxd7 {[%clk 0:02:28.3]} 14... Nxd7 {[%clk 0:02:39.3]} 15. e4 {[%clk
0:02:29.6]} 15... Rae8 {[%clk 0:02:30.6]} 16. e5 {[%clk 0:02:24.5]} 16... fxe5
{[%clk 0:02:30.1]} 17. dxe5 {[%clk 0:02:16.5]} 17... Be7 {[%clk 0:02:25.4]} 18.
Rae1 {[%clk 0:02:16.8]} 18... g6 {[%clk 0:02:22.5]} 19. c4 {[%clk 0:02:11.8]}
19... d4 {[%clk 0:02:05.5]} 20. Ne4 {[%clk 0:02:06.7]} 20... Rf5 {[%clk
0:02:00.4]} 21. h3 {[%clk 0:02:02.9]} 21... Ref8 {[%clk 0:01:58.9]} 22. Bh2
{[%clk 0:02:04.1]} 22... R5f7 {[%clk 0:01:47.2]} 23. Rf3 {[%clk 0:02:01.1]}
23... a6 {[%clk 0:01:47.1]} 24. Ref1 {[%clk 0:01:58.8]} 24... b5 {[%clk
0:01:44.1]} 25. b3 {[%clk 0:01:53.2]} 25... bxc4 {[%clk 0:01:44.5]} 26. bxc4
{[%clk 0:01:55.1]} 26... Qb7 {[%clk 0:01:40.4]} 27. g4 {[%clk 0:01:53.8]} 27...
Qb4 {[%clk 0:01:37.1]} 28. Nd6 {[%clk 0:01:45.9]} 28... Bxd6 {[%clk 0:01:28.7]}
29. exd6 {[%clk 0:01:47.8]} 29... Nb6 {[%clk 0:01:29.5]} 30. Rc1 {[%clk
0:01:42.7]} 30... Na4 {[%clk 0:01:12.4]} 31. Qxe6 {[%clk 0:01:40.7]} 31... Qd2
{[%clk 0:01:13.4]} 32. Re1 {[%clk 0:01:33.8]} 32... Nb6 {[%clk 0:01:02]} 33. f5
{[%clk 0:01:31.6]} 33... Qxa2 {[%clk 0:00:55.1]} 34. fxg6 {[%clk 0:01:29.8]}
34... hxg6 {[%clk 0:00:53.7]} 35. Qxg6+ {[%clk 0:01:31.7]} 35... Rg7 {[%clk
0:00:55.2]} 36. Rxf8+ {[%clk 0:01:32.3]} 36... Kxf8 {[%clk 0:00:57.1]} 37. Re8#
{[%clk 0:01:33.3]} 1-0

[Event "*** Titled Tuesday Blitz"]
[Site "Chess.com"]
[Date "2019.10.01"]
[Round "1"]
[White "SCIM"]
[Black "Grischuk"]
[Result "0-1"]
[WhiteElo "2503"]
[BlackElo "3051"]
[TimeControl "180+2"]
[EndTime "13:06:30 PDT"]
[Termination "Grischuk won by checkmate"]

1. d4 {[%clk 0:03:01.4]} 1... Nf6 {[%clk 0:02:57.1]} 2. c4 {[%clk 0:02:58.7]}
2... e6 {[%clk 0:02:58]} 3. Nc3 {[%clk 0:02:46.8]} 3... Bb4 {[%clk 0:02:58.2]}
4. Qc2 {[%clk 0:02:46.9]} 4... d6 {[%clk 0:02:56.5]} 5. Nf3 {[%clk 0:02:43.3]}
5... Nbd7 {[%clk 0:02:56.3]} 6. Bd2 {[%clk 0:02:41]} 6... b6 {[%clk 0:02:47.9]}
7. a3 {[%clk 0:02:41]} 7... Bxc3 {[%clk 0:02:48.9]} 8. Bxc3 {[%clk 0:02:41.5]}
8... Bb7 {[%clk 0:02:50.8]} 9. e3 {[%clk 0:02:40]} 9... Ne4 {[%clk 0:02:50.4]}
10. Bd3 {[%clk 0:02:35.5]} 10... f5 {[%clk 0:02:51]} 11. Nd2 {[%clk 0:02:24.3]}
11... Nxc3 {[%clk 0:02:20.3]} 12. Qxc3 {[%clk 0:02:22.9]} 12... O-O {[%clk
0:02:21.9]} 13. Nf3 {[%clk 0:01:53]} 13... Qe7 {[%clk 0:01:55.1]} 14. Be2 {[%clk
0:01:41]} 14... Nf6 {[%clk 0:01:45.9]} 15. O-O {[%clk 0:01:39.1]} 15... Ne4
{[%clk 0:01:47.5]} 16. Qc2 {[%clk 0:01:38.9]} 16... Rf6 {[%clk 0:01:48]} 17.
Rfd1 {[%clk 0:01:31.5]} 17... Raf8 {[%clk 0:01:43.4]} 18. d5 {[%clk 0:01:28.8]}
18... e5 {[%clk 0:01:44.8]} 19. Nd2 {[%clk 0:01:16]} 19... Nxd2 {[%clk
0:01:29.9]} 20. Qxd2 {[%clk 0:01:16.3]} 20... f4 {[%clk 0:01:29.5]} 21. e4
{[%clk 0:00:56.1]} 21... Bc8 {[%clk 0:01:29.9]} 22. f3 {[%clk 0:00:35.6]} 22...
Rh6 {[%clk 0:01:30.7]} 23. Qe1 {[%clk 0:00:31.5]} 23... Qg5 {[%clk 0:01:32.3]}
24. Bf1 {[%clk 0:00:21.7]} 24... Qh5 {[%clk 0:01:30.8]} 25. h3 {[%clk
0:00:22.7]} 25... Rg6 {[%clk 0:01:32.5]} 26. Kh2 {[%clk 0:00:18.7]} 26... Rg3
{[%clk 0:01:32.8]} 27. Rd2 {[%clk 0:00:16.9]} 27... Rf6 {[%clk 0:01:34]} 28. Rc1
{[%clk 0:00:16]} 28... Rh6 {[%clk 0:01:34.9]} 29. Rcc2 {[%clk 0:00:13.3]} 29...
Bxh3 {[%clk 0:01:35.8]} 30. gxh3 {[%clk 0:00:13.8]} 30... Qxh3+ {[%clk
0:01:37.2]} 31. Bxh3 {[%clk 0:00:13.8]} 31... Rhxh3# {[%clk 0:01:39.1]} 0-1

[Event "*** Titled Tuesday Blitz"]
[Site "Chess.com"]
[Date "2019.10.01"]
[Round "1"]
[White "MatthewG-p4p"]
[Black "KL31"]
[Result "1-0"]
[WhiteElo "2773"]
[BlackElo "2407"]
[TimeControl "180+2"]
[EndTime "13:06:37 PDT"]
[Termination "MatthewG-p4p won by resignation"]

1. c4 {[%clk 0:02:59.3]} 1... Nf6 {[%clk 0:02:59.9]} 2. g3 {[%clk 0:02:59.2]}
2... e6 {[%clk 0:02:58.5]} 3. Bg2 {[%clk 0:03:00.6]} 3... d5 {[%clk 0:03:00]} 4.
b3 {[%clk 0:03:02.3]} 4... d4 {[%clk 0:03:00.2]} 5. e3 {[%clk 0:03:01.5]} 5...
c5 {[%clk 0:03:01.2]} 6. exd4 {[%clk 0:02:59.6]} 6... cxd4 {[%clk 0:03:03.1]} 7.
d3 {[%clk 0:03:01]} 7... Nc6 {[%clk 0:03:04.1]} 8. Nf3 {[%clk 0:03:02.4]} 8...
Bd6 {[%clk 0:02:50.7]} 9. O-O {[%clk 0:02:56.7]} 9... O-O {[%clk 0:02:50.9]} 10.
a3 {[%clk 0:02:56.3]} 10... a5 {[%clk 0:02:51.4]} 11. Re1 {[%clk 0:02:55.5]}
11... e5 {[%clk 0:02:45.2]} 12. Bg5 {[%clk 0:02:54.3]} 12... h6 {[%clk
0:02:44.8]} 13. Bxf6 {[%clk 0:02:54]} 13... Qxf6 {[%clk 0:02:46.7]} 14. Nbd2
{[%clk 0:02:55.7]} 14... Qg6 {[%clk 0:02:42.7]} 15. Qc2 {[%clk 0:02:53.3]} 15...
f5 {[%clk 0:02:36.1]} 16. c5 {[%clk 0:02:52.9]} 16... Bc7 {[%clk 0:02:37]} 17.
Nc4 {[%clk 0:02:52.2]} 17... Re8 {[%clk 0:02:09.9]} 18. b4 {[%clk 0:02:44.2]}
18... axb4 {[%clk 0:02:07.5]} 19. axb4 {[%clk 0:02:46.1]} 19... Rxa1 {[%clk
0:02:08]} 20. Rxa1 {[%clk 0:02:48]} 20... e4 {[%clk 0:01:22.9]} 21. Nh4 {[%clk
0:02:47.4]} 21... Qe6 {[%clk 0:01:10.1]} 22. Nxf5 {[%clk 0:02:11]} 22... Qxf5
{[%clk 0:01:12]} 23. Bxe4 {[%clk 0:02:11.5]} 23... Qf6 {[%clk 0:01:13.4]} 24. b5
{[%clk 0:02:10.1]} 24... Rxe4 {[%clk 0:01:07.4]} 25. dxe4 {[%clk 0:02:04.7]}
25... d3 {[%clk 0:01:05.3]} 26. Qb2 {[%clk 0:02:05.8]} 26... Ne5 {[%clk
0:00:46.1]} 27. Ra8 {[%clk 0:01:45.8]} 27... Nf3+ {[%clk 0:00:24.3]} 28. Kh1
{[%clk 0:01:45.7]} 28... Qe6 {[%clk 0:00:20.8]} 29. Nd2 {[%clk 0:01:40.1]} 29...
Nxd2 {[%clk 0:00:14.9]} 30. Qxd2 {[%clk 0:01:42]} 30... Qxe4+ {[%clk 0:00:16.2]}
31. Kg1 {[%clk 0:01:42.1]} 31... Qe6 {[%clk 0:00:15.4]} 32. Qxd3 {[%clk
0:01:40.5]} 1-0

[Event "*** Titled Tuesday Blitz"]
[Site "Chess.com"]
[Date "2019.10.01"]
[Round "1"]
[White "MITerryble"]
[Black "PotapovaM"]
[Result "1-0"]
[WhiteElo "2841"]
[BlackElo "2438"]
[TimeControl "180+2"]
[EndTime "13:06:41 PDT"]
[Termination "MITerryble won by checkmate"]

1. e4 {[%clk 0:03:00.5]} 1... c5 {[%clk 0:02:59.2]} 2. Nf3 {[%clk 0:03:01]} 2...
d6 {[%clk 0:03:00.2]} 3. Bb5+ {[%clk 0:03:01.3]} 3... Nd7 {[%clk 0:02:59.7]} 4.
d4 {[%clk 0:03:01.9]} 4... cxd4 {[%clk 0:02:58.9]} 5. Qxd4 {[%clk 0:03:03.8]}
5... a6 {[%clk 0:03:00.1]} 6. Bxd7+ {[%clk 0:03:04.5]} 6... Bxd7 {[%clk
0:03:02]} 7. Bg5 {[%clk 0:03:05.9]} 7... h6 {[%clk 0:02:53.8]} 8. Bh4 {[%clk
0:03:06.7]} 8... Rc8 {[%clk 0:02:49.1]} 9. O-O {[%clk 0:03:07.1]} 9... e5 {[%clk
0:02:35]} 10. Bxd8 {[%clk 0:03:05.7]} 10... exd4 {[%clk 0:02:35.7]} 11. Bb6
{[%clk 0:03:06.7]} 11... Nf6 {[%clk 0:02:19.5]} 12. Nxd4 {[%clk 0:03:06]} 12...
Be7 {[%clk 0:02:08.5]} 13. Nc3 {[%clk 0:02:57.9]} 13... O-O {[%clk 0:02:07.9]}
14. Rfe1 {[%clk 0:02:58.1]} 14... Ng4 {[%clk 0:02:02.4]} 15. Nd5 {[%clk
0:02:56.9]} 15... Bg5 {[%clk 0:02:01.6]} 16. Rad1 {[%clk 0:02:50.9]} 16... Be6
{[%clk 0:01:47.1]} 17. b3 {[%clk 0:02:31.1]} 17... Bxd5 {[%clk 0:01:41.5]} 18.
exd5 {[%clk 0:02:31.3]} 18... Bf6 {[%clk 0:01:42.7]} 19. c4 {[%clk 0:02:30.9]}
19... Ne5 {[%clk 0:01:42.8]} 20. Nf5 {[%clk 0:02:31.5]} 20... Rcd8 {[%clk
0:00:51.1]} 21. Bxd8 {[%clk 0:02:31.4]} 21... Rxd8 {[%clk 0:00:53]} 22. f4
{[%clk 0:02:30]} 22... Ng6 {[%clk 0:00:54]} 23. g3 {[%clk 0:02:30.9]} 23... Nf8
{[%clk 0:00:54.9]} 24. Kg2 {[%clk 0:02:29.8]} 24... g6 {[%clk 0:00:55.5]} 25.
Nxh6+ {[%clk 0:02:30.8]} 25... Kg7 {[%clk 0:00:56.1]} 26. Ng4 {[%clk 0:02:32.7]}
26... Bc3 {[%clk 0:00:57.3]} 27. Re3 {[%clk 0:02:33.2]} 27... Bb4 {[%clk
0:00:58.4]} 28. Re7 {[%clk 0:02:32.7]} 28... Nd7 {[%clk 0:00:58.3]} 29. Rf1
{[%clk 0:02:21.7]} 29... Kf8 {[%clk 0:00:58.9]} 30. Re2 {[%clk 0:02:22.5]} 30...
Bc5 {[%clk 0:00:57.3]} 31. f5 {[%clk 0:02:23.3]} 31... g5 {[%clk 0:00:57.6]} 32.
f6 {[%clk 0:02:24.2]} 32... Bd4 {[%clk 0:00:58.9]} 33. Re4 {[%clk 0:02:16.9]}
33... Bc3 {[%clk 0:00:59.1]} 34. Rf5 {[%clk 0:02:17.8]} 34... a5 {[%clk
0:00:58.3]} 35. Re3 {[%clk 0:02:16.1]} 35... Bd4 {[%clk 0:00:59.1]} 36. Re4
{[%clk 0:02:16.2]} 36... Bc3 {[%clk 0:01:00.3]} 37. Rxg5 {[%clk 0:02:17.7]}
37... Nxf6 {[%clk 0:01:00.5]} 38. Nxf6 {[%clk 0:02:18.1]} 38... Bxf6 {[%clk
0:01:02.4]} 39. Rh5 {[%clk 0:02:16.3]} 39... Ra8 {[%clk 0:00:57]} 40. a4 {[%clk
0:02:15.6]} 40... Ra6 {[%clk 0:00:56.7]} 41. Rf4 {[%clk 0:02:16.9]} 41... Be5
{[%clk 0:00:55.3]} 42. Rf3 {[%clk 0:02:18.3]} 42... Rb6 {[%clk 0:00:55.4]} 43.
Rhf5 {[%clk 0:02:19.3]} 43... f6 {[%clk 0:00:55.9]} 44. Rxf6+ {[%clk 0:02:14]}
44... Bxf6 {[%clk 0:00:56.4]} 45. Rxf6+ {[%clk 0:02:15.9]} 45... Kg7 {[%clk
0:00:57.2]} 46. Rf3 {[%clk 0:02:17.8]} 46... Ra6 {[%clk 0:00:57.6]} 47. g4
{[%clk 0:02:19.1]} 47... Ra8 {[%clk 0:00:58.3]} 48. Re3 {[%clk 0:02:19.8]} 48...
Kf6 {[%clk 0:00:56.6]} 49. Re6+ {[%clk 0:02:20.2]} 49... Kg5 {[%clk 0:00:57.3]}
50. Kg3 {[%clk 0:02:21.6]} 50... Rd8 {[%clk 0:00:56.1]} 51. h4# {[%clk
0:02:22.3]} 1-0

[Event "*** Titled Tuesday Blitz"]
[Site "Chess.com"]
[Date "2019.10.01"]
[Round "1"]
[White "gui_borba"]
[Black "riconaipe"]
[Result "0-1"]
[WhiteElo "2268"]
[BlackElo "2625"]
[TimeControl "180+2"]
[EndTime "13:06:42 PDT"]
[Termination "riconaipe won by resignation"]

1. e4 {[%clk 0:03:00.7]} 1... c6 {[%clk 0:03:00.8]} 2. d4 {[%clk 0:03:01.2]}
2... d5 {[%clk 0:03:02.4]} 3. e5 {[%clk 0:03:02.6]} 3... Bf5 {[%clk 0:03:02.1]}
4. Ne2 {[%clk 0:03:03.9]} 4... e6 {[%clk 0:02:59.7]} 5. Ng3 {[%clk 0:03:05]}
5... Bg6 {[%clk 0:03:01.1]} 6. h4 {[%clk 0:03:06.7]} 6... h6 {[%clk 0:03:02.1]}
7. h5 {[%clk 0:03:07.6]} 7... Bh7 {[%clk 0:03:03.4]} 8. Bd3 {[%clk 0:03:09.5]}
8... Bxd3 {[%clk 0:03:04.6]} 9. cxd3 {[%clk 0:03:11.4]} 9... Ne7 {[%clk
0:03:00.4]} 10. O-O {[%clk 0:03:10.5]} 10... Nd7 {[%clk 0:02:56.2]} 11. Be3
{[%clk 0:03:11.5]} 11... c5 {[%clk 0:02:56]} 12. dxc5 {[%clk 0:03:03.6]} 12...
Nxe5 {[%clk 0:02:56.7]} 13. d4 {[%clk 0:03:01.9]} 13... Nc4 {[%clk 0:02:37.3]}
14. Nd2 {[%clk 0:02:39.5]} 14... Nxd2 {[%clk 0:02:34.3]} 15. Qxd2 {[%clk
0:02:36.9]} 15... Nc6 {[%clk 0:02:32.3]} 16. b4 {[%clk 0:02:37.2]} 16... Be7
{[%clk 0:02:31.3]} 17. b5 {[%clk 0:02:36]} 17... Na5 {[%clk 0:02:31.9]} 18. f4
{[%clk 0:02:31.1]} 18... Nc4 {[%clk 0:02:26.4]} 19. Qe2 {[%clk 0:02:32.1]} 19...
Rc8 {[%clk 0:02:04.5]} 20. f5 {[%clk 0:02:29.5]} 20... e5 {[%clk 0:02:05.5]} 21.
dxe5 {[%clk 0:02:07.6]} 21... Nxe3 {[%clk 0:02:04.7]} 22. f6 {[%clk 0:02:03]}
22... Nxf1 {[%clk 0:01:53.2]} 23. fxe7 {[%clk 0:01:59]} 23... Qxe7 {[%clk
0:01:51.1]} 24. Rxf1 {[%clk 0:01:54]} 24... O-O {[%clk 0:01:47.3]} 25. Nf5
{[%clk 0:01:50.7]} 25... Qxc5+ {[%clk 0:01:48.3]} 26. Kh1 {[%clk 0:01:51.2]}
26... Qc4 {[%clk 0:01:42.7]} 27. Qf2 {[%clk 0:01:34.9]} 27... Qg4 {[%clk
0:01:15.6]} 28. Ng3 {[%clk 0:01:16.9]} 28... Rc4 {[%clk 0:01:09]} 29. e6 {[%clk
0:01:00.1]} 29... Qxe6 {[%clk 0:01:08.9]} 30. Nf5 {[%clk 0:01:01.3]} 30... Rg4
{[%clk 0:00:58.7]} 31. Qf3 {[%clk 0:01:01]} 31... Rg5 {[%clk 0:00:58.9]} 32. Nd4
{[%clk 0:00:59.1]} 32... Qe4 {[%clk 0:00:58.6]} 0-1